bitfinex/quotes_BTCUSD_20240715
["timestamp","ask_amount","ask_price","bid_price","bid_amount"]
[1721040696581,2.21844062,62708.0,62707.0,0.00415086]
[1721040696829,2.20594427,62708.0,62707.0,0.00415086]
[1721040697066,2.47832857,62708.0,62707.0,0.00415086]
[1721040697368,2.81126657,62708.0,62707.0,0.00415086]
[1721040697592,2.82526657,62708.0,62707.0,0.00415086]
[1721040697841,2.96834597,62708.0,62707.0,0.00415086]
[1721040698057,2.95434597,62708.0,62707.0,0.00415086]
[1721040698495,2.96834597,62708.0,62707.0,0.00415086]
[1721040699394,2.96861095,62708.0,62707.0,0.00415086]
[1721040699815,2.70640235,62708.0,62707.0,0.00415086]
[1721040700064,2.76263155,62708.0,62707.0,0.00415086]
[1721040700272,2.76254081,62708.0,62707.0,0.00415086]
[1721040700724,2.9056171,62708.0,62707.0,0.00415086]
[1721040700942,2.76254081,62708.0,62707.0,0.00415086]
[1721040702449,2.70619781,62708.0,62707.0,0.00415086]
[1721040702656,2.56312152,62708.0,62707.0,0.00415086]
[1721040703491,2.70566544,62708.0,62707.0,0.00415086]
[1721040703721,2.56258181,62708.0,62707.0,0.00415086]
[1721040703935,2.56254375,62708.0,62707.0,0.00415086]
[1721040704128,2.76185235,62708.0,62707.0,0.00415086]
[1721040704511,2.70150641,62708.0,62707.0,0.00415086]
[1721040704723,2.761647,62708.0,62707.0,0.00415086]
[1721040704923,2.2434004,62708.0,62707.0,0.00415086]
[1721040705152,2.442709,62708.0,62707.0,0.00415086]
[1721040705783,2.70542253,62708.0,62707.0,0.00415086]
[1721040706010,2.5623384,62708.0,62707.0,0.00415086]
[1721040706235,2.903947,62708.0,62707.0,0.00415086]
[1721040706455,2.74702232,62708.0,62707.0,0.00415086]
[1721040706687,2.94907577,62708.0,62707.0,0.00415086]
[1721040706939,2.90371539,62708.0,62707.0,0.00415086]
[1721040707569,3.04679009,62708.0,62707.0,0.00415086]
[1721040708613,2.90371539,62708.0,62707.0,0.00415086]
[1721040710046,2.74702232,62708.0,62707.0,0.00415086]
[1721040710251,2.90451115,62708.0,62707.0,0.00415086]
[1721040710472,2.82791115,62708.0,62707.0,0.00415086]
[1721040710707,2.62860255,62708.0,62707.0,0.00415086]
[1721040711367,2.38711977,62708.0,62707.0,0.00415086]
[1721040713237,2.24396455,62708.0,62707.0,0.00415086]
[1721040713469,2.17042065,62708.0,62707.0,0.00415086]
[1721040713605,2.15271721,62708.0,62707.0,0.00415086]
[1721040713806,2.15271721,62708.0,62707.0,8.6e-07]
[1721040713807,2.85124963,62708.0,62707.0,8.6e-07]
[1721040714012,2.75836364,62702.0,62701.0,8.6e-07]
[1721040714220,3.346927,62702.0,62701.0,8.6e-07]
[1721040714418,3.560927,62702.0,62701.0,8.6e-07]
[1721040714731,3.879896,62702.0,62701.0,8.6e-07]
[1721040715511,3.59944074,62702.0,62701.0,8.6e-07]
[1721040715717,3.82385634,62702.0,62701.0,8.6e-07]
[1721040716137,3.98465132,62702.0,62701.0,8.6e-07]
[1721040716418,2.681829,62702.0,62701.0,8.6e-07]
[1721040716619,1.57586009,62702.0,62701.0,8.6e-07]
[1721040716828,1.55084737,62702.0,62701.0,8.6e-07]
[1721040717137,1.66015526,62702.0,62701.0,8.6e-07]
[1721040717337,1.64615526,62702.0,62701.0,8.6e-07]
[1721040717643,1.53684737,62702.0,62701.0,8.6e-07]
[1721040717856,2.03481637,62702.0,62701.0,8.6e-07]
[1721040718064,2.13481637,62702.0,62701.0,8.6e-07]
[1721040718306,2.13881637,62702.0,62701.0,8.6e-07]
[1721040718540,2.55635203,62702.0,62701.0,8.6e-07]
[1721040718797,2.76966063,62702.0,62701.0,8.6e-07]
[1721040719704,2.75129388,62702.0,62701.0,8.6e-07]
[1721040719871,2.90829377,62702.0,62701.0,8.6e-07]
[1721040720041,2.89429377,62702.0,62701.0,8.6e-07]
[1721040720438,2.90829377,62702.0,62701.0,8.6e-07]
[1721040721280,2.92229377,62702.0,62701.0,8.6e-07]
[1721040721882,2.14181617,62702.0,62701.0,0.14730086]
[1721040722164,2.47081628,62702.0,62701.0,0.14730086]
[1721040722373,2.64108925,62702.0,62701.0,0.14730086]
[1721040722527,2.7601909,62702.0,62701.0,0.14730086]
[1721040722730,2.58108925,62702.0,62701.0,0.14730086]
[1721040722930,2.64108925,62702.0,62701.0,0.14730086]
[1721040723375,2.66408925,62702.0,62701.0,0.14730086]
[1721040723739,2.16408925,62702.0,62701.0,0.14730086]
[1721040723917,2.66408925,62702.0,62701.0,0.14730086]
[1721040724333,2.16408925,62702.0,62701.0,0.14730086]
[1721040724529,2.56552259,62702.0,62701.0,0.14730086]
[1721040724731,1.6195791,62702.0,62701.0,0.14730086]
[1721040724987,1.1776101,62702.0,62701.0,0.14799226]
[1721040725192,1.04577656,62702.0,62701.0,0.14799226]
[1721040725391,1.04601194,62702.0,62701.0,0.14730086]
[1721040725731,1.01507401,62702.0,62701.0,0.14799226]
[1721040725940,1.04601165,62702.0,62701.0,0.14799226]
[1721040726147,1.06417103,62702.0,62701.0,0.14799226]
[1721040726350,1.07817103,62702.0,62701.0,0.14730086]
[1721040726649,1.17817103,62702.0,62701.0,0.14730086]
[1721040727382,1.17817103,62702.0,62701.0,0.14799226]
[1721040727705,1.14601165,62702.0,62701.0,0.14799226]
[1721040727941,0.17247174,62702.0,62701.0,0.14799226]
[1721040728147,0.34595574,62702.0,62701.0,0.14799226]
[1721040728552,1.16127292,62702.0,62701.0,0.14799226]
[1721040728755,1.14638905,62702.0,62701.0,0.14799226]
[1721040728884,0.72742094,62702.0,62701.0,0.14799226]
[1721040729611,1.04638994,62702.0,62701.0,0.14799226]
[1721040730142,1.04638994,62702.0,62701.0,0.14730086]
[1721040730143,1.09254932,62702.0,62701.0,0.14730086]
[1721040730516,1.43451832,62702.0,62701.0,0.14730086]
[1721040730701,1.5202448,62702.0,62701.0,0.14730086]
[1721040730904,1.8392138,62702.0,62701.0,8.6e-07]
[1721040731909,1.83891657,62702.0,62701.0,8.6e-07]
[1721040732140,2.51719417,62702.0,62701.0,8.6e-07]
[1721040732348,2.58421985,62702.0,62701.0,8.6e-07]
[1721040732546,3.00696214,62702.0,62701.0,8.6e-07]
[1721040732744,2.91171985,62702.0,62701.0,8.6e-07]
[1721040732950,3.03077272,62702.0,62701.0,8.6e-07]
[1721040733299,3.03081272,62702.0,62701.0,8.6e-07]
[1721040733447,3.01681272,62702.0,62701.0,8.6e-07]
[1721040733875,3.11537938,62702.0,62701.0,8.6e-07]
[1721040734227,3.32929551,62702.0,62701.0,8.6e-07]
[1721040734972,3.31551359,62702.0,62701.0,8.6e-07]
[1721040735162,3.32951359,62702.0,62701.0,8.6e-07]
[1721040735580,3.31551359,62702.0,62701.0,8.6e-07]
[1721040736027,3.32951359,62702.0,62701.0,8.6e-07]
[1721040736443,3.31551359,62702.0,62701.0,8.6e-07]
[1721040736841,3.32951359,62702.0,62701.0,8.6e-07]
[1721040738291,3.15865705,62702.0,62701.0,8.6e-07]
[1721040738493,3.32916025,62702.0,62701.0,8.6e-07]
[1721040738695,3.23126939,62702.0,62701.0,8.6e-07]
[1721040738897,3.32915987,62702.0,62701.0,8.6e-07]
[1721040741378,3.32860294,62702.0,62701.0,8.6e-07]
[1721040741577,3.23120403,62702.0,62701.0,8.6e-07]
[1721040741734,3.32858297,62702.0,62701.0,8.6e-07]
[1721040742148,3.47124612,62702.0,62701.0,8.6e-07]
[1721040742359,3.32858297,62702.0,62701.0,8.6e-07]
[1721040743284,3.47123334,62702.0,62701.0,8.6e-07]
[1721040744509,3.32858297,62702.0,62701.0,8.6e-07]
[1721040744781,3.34635144,62702.0,62701.0,8.6e-07]
[1721040745016,3.4709217,62702.0,62701.0,8.6e-07]
[1721040745722,3.32833101,62702.0,62701.0,8.6e-07]
[1721040746220,3.4709217,62702.0,62701.0,8.6e-07]
[1721040746422,3.32833101,62702.0,62701.0,8.6e-07]
[1721040747743,3.4709217,62702.0,62701.0,8.6e-07]
[1721040748045,3.25581507,62702.0,62701.0,8.6e-07]
[1721040748315,3.32831209,62702.0,62701.0,8.6e-07]
[1721040748554,3.15865705,62702.0,62701.0,8.6e-07]
[1721040748792,3.32790428,62702.0,62701.0,8.6e-07]
[1721040748993,3.47043425,62702.0,62701.0,8.6e-07]
[1721040749196,3.32790428,62702.0,62701.0,8.6e-07]
[1721040749613,3.34439198,62702.0,62701.0,8.6e-07]
[1721040750235,3.48692195,62702.0,62701.0,8.6e-07]
[1721040750436,3.48209198,62702.0,62701.0,8.6e-07]
[1721040751281,3.40963519,62702.0,62701.0,8.6e-07]
[1721040751480,3.47938614,62702.0,62701.0,8.6e-07]
[1721040752095,3.17391816,62702.0,62701.0,8.6e-07]
[1721040752293,3.17372622,62702.0,62701.0,8.6e-07]
[1721040752774,3.4791942,62702.0,62701.0,8.6e-07]
[1721040752980,3.17372622,62702.0,62701.0,8.6e-07]
[1721040753613,3.4791942,62702.0,62701.0,8.6e-07]
[1721040754655,3.47943685,62702.0,62701.0,8.6e-07]
[1721040754856,3.62191405,62702.0,62701.0,8.6e-07]
[1721040755063,3.47943685,62702.0,62701.0,8.6e-07]
[1721040755580,3.62191405,62702.0,62701.0,8.6e-07]
[1721040755829,3.47943685,62702.0,62701.0,8.6e-07]
[1721040756442,3.62191405,62702.0,62701.0,8.6e-07]
[1721040756982,3.47943685,62702.0,62701.0,8.6e-07]
[1721040757474,3.62191405,62702.0,62701.0,8.6e-07]
[1721040757601,3.47943685,62702.0,62701.0,8.6e-07]
[1721040757975,3.48144519,62702.0,62701.0,8.6e-07]
[1721040758087,2.77899859,62702.0,62701.0,0.06590086]
[1721040758317,3.09706206,62702.0,62701.0,0.06590086]
[1721040758517,3.09706709,62702.0,62701.0,8.6e-07]
[1721040759829,3.24246709,62702.0,62701.0,8.6e-07]
[1721040760042,2.97830719,62702.0,62701.0,8.6e-07]
[1721040760284,3.09707513,62702.0,62701.0,8.6e-07]
[1721040760454,2.97830719,62702.0,62701.0,8.6e-07]
[1721040761068,2.88192227,62702.0,62701.0,8.6e-07]
[1721040761217,2.97973094,62702.0,62701.0,8.6e-07]
[1721040761745,2.97978422,62702.0,62701.0,8.6e-07]
[1721040763313,3.29875322,62702.0,62701.0,8.6e-07]
[1721040764276,3.22656367,62702.0,62701.0,8.6e-07]
[1721040764449,3.29918191,62702.0,62701.0,8.6e-07]
[1721040764647,3.20110205,62702.0,62701.0,8.6e-07]
[1721040764857,3.2991233,62702.0,62701.0,8.6e-07]
[1721040766311,3.3901233,62702.0,62701.0,8.6e-07]
[1721040766524,3.1908147,62702.0,62701.0,8.6e-07]
[1721040766724,3.3901233,62702.0,62701.0,8.6e-07]
[1721040767462,3.24702699,62702.0,62701.0,8.6e-07]
[1721040767677,3.39206767,62702.0,62701.0,8.6e-07]
[1721040770997,3.39205518,62702.0,62701.0,8.6e-07]
[1721040771109,3.39205523,62702.0,62701.0,8.6e-07]
[1721040772959,3.10174663,62702.0,62701.0,8.6e-07]
[1721040773162,3.19274663,62702.0,62701.0,0.08090086]
[1721040773927,2.69274663,62702.0,62701.0,0.08090086]
[1721040774130,3.19274663,62702.0,62701.0,0.08090086]
[1721040774284,3.12468616,62702.0,62701.0,0.14400086]
[1721040774448,3.19253996,62702.0,62701.0,0.14400086]
[1721040774652,3.19269074,62702.0,62701.0,0.14400086]
[1721040775051,3.19269074,62702.0,62701.0,0.08090086]
[1721040777182,3.1927494,62702.0,62701.0,0.08090086]
[1721040777382,3.39204912,62702.0,62701.0,8.6e-07]
[1721040777800,3.85821812,62702.0,62701.0,8.6e-07]
[1721040778008,4.01895188,62702.0,62701.0,8.6e-07]
[1721040778211,3.85821812,62702.0,62701.0,8.6e-07]
[1721040779029,4.01897953,62702.0,62701.0,8.6e-07]
[1721040779563,3.85821812,62702.0,62701.0,8.6e-07]
[1721040780136,3.85821812,62702.0,62691.0,8.6e-07]
[1721040780137,3.07765764,62692.0,62691.0,8.6e-07]
[1721040780335,2.99222626,62692.0,62691.0,8.6e-07]
[1721040780546,2.94075312,62692.0,62691.0,8.6e-07]
[1721040780763,3.36487411,62692.0,62691.0,8.6e-07]
[1721040781417,3.52564991,62692.0,62691.0,8.6e-07]
[1721040781661,3.52567635,62692.0,62691.0,8.6e-07]
[1721040782491,3.51547411,62692.0,62691.0,8.6e-07]
[1721040782764,3.50147411,62692.0,62691.0,8.6e-07]
[1721040782991,3.56287411,62692.0,62691.0,8.6e-07]
[1721040783221,3.89589311,62692.0,62691.0,8.6e-07]
[1721040783445,4.0709436,62692.0,62691.0,8.6e-07]
[1721040783675,4.07094093,62692.0,62691.0,8.6e-07]
[1721040783880,3.89624279,62692.0,62691.0,8.6e-07]
[1721040784035,3.7225165,62692.0,62691.0,8.6e-07]
[1721040784234,3.91024499,62692.0,62691.0,8.6e-07]
[1721040785167,3.89624499,62692.0,62691.0,8.6e-07]
[1721040785413,3.91024499,62692.0,62691.0,8.6e-07]
[1721040785622,3.60523026,62692.0,62691.0,8.6e-07]
[1721040785830,3.91024499,62692.0,62691.0,8.6e-07]
[1721040786474,3.7365165,62692.0,62691.0,8.6e-07]
[1721040786676,3.91081749,62692.0,62691.0,8.6e-07]
[1721040786881,4.07162714,62692.0,62691.0,8.6e-07]
[1721040787056,3.91081749,62692.0,62691.0,8.6e-07]
[1721040787254,4.07160418,62692.0,62691.0,8.6e-07]
[1721040788506,3.91081749,62692.0,62691.0,8.6e-07]
[1721040788718,4.07160418,62692.0,62691.0,8.6e-07]
[1721040789358,3.84941749,62692.0,62691.0,8.6e-07]
[1721040789793,3.9160934,62692.0,62691.0,8.6e-07]
[1721040790020,3.84807235,62692.0,62691.0,8.6e-07]
[1721040790707,3.6751165,62692.0,62691.0,8.6e-07]
[1721040790938,3.84784498,62692.0,62691.0,8.6e-07]
[1721040793061,3.84783489,62692.0,62691.0,8.6e-07]
[1721040794416,2.40073413,62677.0,62676.0,0.12260086]
[1721040794618,2.62880887,62677.0,62676.0,0.12260086]
[1721040794746,2.63362863,62677.0,62676.0,0.12260086]
[1721040794956,2.65662863,62677.0,62676.0,0.12260086]
[1721040795352,2.75179405,62677.0,62676.0,0.12260086]
[1721040795965,2.67062863,62677.0,62676.0,0.12260086]
[1721040796410,2.7657226,62677.0,62676.0,0.12260086]
[1721040796622,2.8035304,62677.0,62676.0,0.12260086]
[1721040796818,2.78004563,62677.0,62676.0,0.12260086]
[1721040797017,1.73145049,62677.0,62676.0,0.12260086]
[1721040797239,1.73145049,62677.0,62676.0,0.1247256]
[1721040797240,1.14987359,62677.0,62676.0,0.1247256]
[1721040797564,1.0474555,62677.0,62676.0,0.1247256]
[1721040798275,1.09316163,62677.0,62676.0,0.1240342]
[1721040798401,1.09305726,62677.0,62676.0,0.1247256]
[1721040798601,1.09305726,62677.0,62676.0,0.1240342]
[1721040798809,1.13828132,62677.0,62676.0,0.1240342]
[1721040799406,1.11023411,62677.0,62676.0,0.1240342]
[1721040799612,1.11023411,62677.0,62667.0,0.009185]
[1721040799613,0.90501473,62668.0,62667.0,0.009185]
[1721040799795,2.16634028,62668.0,62667.0,0.009185]
[1721040800035,3.24676628,62668.0,62667.0,0.009185]
[1721040800230,3.58241201,62668.0,62667.0,0.009185]
[1721040800427,3.58241201,62668.0,62665.0,0.009174]
[1721040800428,1.84119873,62666.0,62665.0,0.009174]
[1721040800631,2.19397806,62666.0,62665.0,0.009174]
[1721040800855,2.51313006,62666.0,62665.0,0.009174]
[1721040801079,2.51313006,62666.0,62665.0,0.009074]
[1721040801282,2.51313006,62666.0,62663.0,0.0126772]
[1721040801283,2.25897239,62664.0,62663.0,2e-07]
[1721040801498,3.07003163,62664.0,62663.0,2e-07]
[1721040801661,3.09303163,62664.0,62663.0,2e-07]
[1721040802740,3.02833732,62664.0,62663.0,2e-07]
[1721040803016,3.11258383,62664.0,62663.0,2e-07]
[1721040803216,3.23127447,62664.0,62663.0,2e-07]
[1721040803416,3.11258383,62664.0,62663.0,2e-07]
[1721040803617,3.23127447,62664.0,62663.0,2e-07]
[1721040803842,3.2312665,62664.0,62663.0,2e-07]
[1721040804037,3.2313065,62664.0,62663.0,2e-07]
[1721040804276,3.12662383,62664.0,62663.0,2e-07]
[1721040804655,3.72153328,62664.0,62663.0,2e-07]
[1721040804854,2.86017506,62664.0,62663.0,2e-07]
[1721040805032,2.78899123,62664.0,62663.0,2e-07]
[1721040805448,2.28899123,62664.0,62663.0,2e-07]
[1721040805653,2.78899123,62664.0,62663.0,2e-07]
[1721040805856,2.71315257,62664.0,62663.0,2e-07]
[1721040806041,2.98578378,62664.0,62663.0,2e-07]
[1721040806429,2.78647518,62664.0,62663.0,2e-07]
[1721040806837,3.02090476,62664.0,62663.0,2e-07]
[1721040807621,3.34006676,62664.0,62663.0,2e-07]
[1721040807991,3.34006676,62664.0,62653.0,0.0257841]
[1721040807992,1.66226674,62654.0,62653.0,0.0257841]
[1721040808193,2.08951643,62654.0,62653.0,0.0257841]
[1721040808576,2.46872943,62654.0,62653.0,0.0257841]
[1721040809031,2.40786834,62654.0,62653.0,0.0257841]
[1721040809185,2.46888121,62654.0,62653.0,0.0257841]
[1721040809388,2.37640302,62654.0,62653.0,0.0257841]
[1721040809592,2.42287523,62654.0,62653.0,0.0257841]
[1721040809777,2.43687523,62654.0,62653.0,0.0257841]
[1721040810181,2.33040302,62654.0,62653.0,0.0257841]
[1721040810494,2.43664579,62654.0,62653.0,0.0257841]
[1721040811100,2.43664579,62654.0,62653.0,0.0868841]
[1721040811299,2.49664579,62654.0,62653.0,0.0868841]
[1721040812176,2.43664579,62654.0,62653.0,0.0868841]
[1721040812376,2.3910627,62654.0,62653.0,0.0868841]
[1721040812577,2.43651744,62654.0,62653.0,0.0868841]
[1721040813157,2.43647487,62654.0,62653.0,0.0868841]
[1721040813567,2.43647708,62654.0,62653.0,0.0868841]
[1721040814039,2.49647708,62654.0,62653.0,0.0868841]
[1721040814505,2.53741452,62654.0,62653.0,0.0868841]
[1721040814726,2.66028431,62654.0,62653.0,0.0868841]
[1721040815148,2.66028431,62654.0,62653.0,0.0257841]
[1721040816317,2.60028431,62654.0,62653.0,0.0257841]
[1721040816566,2.66028431,62654.0,62653.0,0.0257841]
[1721040818912,2.66028431,62654.0,62649.0,0.0764]
[1721040818913,1.64220913,62652.0,62649.0,0.0764]
[1721040819117,2.75089058,62652.0,62649.0,0.0764]
[1721040819268,2.55158807,62652.0,62649.0,0.0764]
[1721040819878,2.51065063,62652.0,62649.0,0.0764]
[1721040820080,2.55162816,62652.0,62649.0,0.0764]
[1721040820282,2.81193676,62652.0,62648.0,0.009174]
[1721040820669,2.82593676,62652.0,62648.0,0.009174]
[1721040821092,2.25939039,62649.0,62648.0,1e-06]
[1721040821293,2.25939039,62649.0,62644.0,0.009174]
[1721040821294,1.80171639,62646.0,62645.0,0.068175]
[1721040821500,2.84081816,62646.0,62645.0,0.068175]
[1721040821717,3.40596578,62646.0,62645.0,0.068175]
[1721040821919,3.6995186,62646.0,62645.0,0.004323]
[1721040822122,3.87408406,62646.0,62645.0,0.004323]
[1721040822321,3.87408406,62646.0,62645.0,1e-06]
[1721040823290,3.87408406,62646.0,62644.0,0.009174]
[1721040823291,3.25552146,62646.0,62631.0,0.002]
[1721040823502,3.25552146,62646.0,62628.0,0.04965536]
[1721040823503,1.02471613,62629.0,62628.0,0.04965536]
[1721040823704,1.60786866,62629.0,62628.0,0.04965536]
[1721040823916,1.98720866,62629.0,62628.0,0.04965536]
[1721040824126,1.96433887,62629.0,62628.0,0.04965536]
[1721040824298,2.60108099,62629.0,62628.0,0.04965536]
[1721040824504,2.4668589,62629.0,62628.0,0.04965536]
[1721040824899,2.68037714,62629.0,62628.0,0.04965536]
[1721040825036,2.78037714,62629.0,62628.0,0.04965536]
[1721040825241,2.88812484,62629.0,62628.0,0.04965536]
[1721040825485,2.38347624,62629.0,62628.0,0.04965536]
[1721040825816,2.22347624,62629.0,62628.0,0.04965536]
[1721040826008,2.68881624,62629.0,62628.0,0.04965536]
[1721040826190,2.38347624,62629.0,62628.0,0.04965536]
[1721040826347,2.36337666,62629.0,62628.0,0.04965536]
[1721040826973,2.86802526,62629.0,62628.0,0.04965536]
[1721040827547,2.82847488,62629.0,62628.0,0.04965536]
[1721040827892,2.84247488,62629.0,62628.0,0.04965536]
[1721040828215,0.04502174,62613.0,62611.0,0.002]
[1721040828416,1.04150002,62613.0,62612.0,0.07349534]
[1721040828623,1.04150002,62613.0,62612.0,0.07418674]
[1721040828624,0.99579389,62613.0,62612.0,0.07418674]
[1721040828829,0.19723889,62613.0,62612.0,0.07418674]
[1721040829003,0.03512098,62613.0,62612.0,0.37699974]
[1721040829210,0.19723889,62613.0,62612.0,0.21728674]
[1721040829430,0.68695704,62613.0,62612.0,0.21728674]
[1721040829778,0.71903463,62613.0,62612.0,0.20928674]
[1721040830412,0.73303463,62613.0,62612.0,0.20928674]
[1721040830611,1.05245663,62613.0,62612.0,0.20928674]
[1721040830754,1.37187863,62613.0,62612.0,0.20859534]
[1721040830959,1.39487863,62613.0,62612.0,0.207162]
[1721040831812,1.76030063,62613.0,62612.0,0.064062]
[1721040832015,1.81430063,62613.0,62612.0,0.064062]
[1721040832236,1.87430063,62613.0,62612.0,0.064062]
[1721040832456,1.44387863,62613.0,62612.0,0.064062]
[1721040832681,1.44387863,62613.0,62612.0,0.145862]
[1721040832916,1.44387863,62613.0,62612.0,0.1465534]
[1721040832917,0.3679065,62613.0,62612.0,0.1465534]
[1721040833142,0.6733285,62613.0,62612.0,0.14798674]
[1721040833591,0.3679465,62613.0,62612.0,0.14798674]
[1721040834246,0.3679465,62613.0,62612.0,0.228065]
[1721040834247,0.04611759,62613.0,62612.0,0.228065]
[1721040834434,0.02804,62613.0,62612.0,0.707205]
[1721040834677,0.30539913,62620.0,62619.0,0.0006914]
[1721040834899,0.47989099,62620.0,62619.0,0.0006914]
[1721040835523,0.75357086,62620.0,62619.0,0.0006914]
[1721040836112,0.01237395,62620.0,62619.0,0.326098]
[1721040836352,0.47905,62629.0,62628.0,0.08522474]
[1721040836582,1.0204409,62629.0,62628.0,0.15142474]
[1721040836827,0.7011009,62629.0,62628.0,0.15142474]
[1721040837388,0.33605477,62629.0,62628.0,0.15142474]
[1721040837813,0.65539477,62629.0,62628.0,0.15142474]
[1721040838027,0.7011009,62629.0,62628.0,0.15142474]
[1721040838227,0.65543477,62629.0,62628.0,0.15142474]
[1721040838433,0.33609477,62629.0,62628.0,0.15142474]
[1721040838657,0.34996109,62629.0,62628.0,0.15242474]
[1721040838867,0.19038477,62629.0,62628.0,0.15242474]
[1721040839081,0.19038477,62629.0,62628.0,0.15342474]
[1721040839082,0.20438477,62629.0,62628.0,0.15342474]
[1721040839657,0.36405477,62629.0,62628.0,0.15342474]
[1721040839838,0.19038477,62629.0,62628.0,0.15242474]
[1721040840300,0.20438477,62629.0,62628.0,0.15342474]
[1721040840497,0.20438477,62629.0,62628.0,0.168403]
[1721040840708,0.16215791,62629.0,62628.0,0.166403]
[1721040840898,0.16215791,62629.0,62628.0,0.64961316]
[1721040840899,0.00204,62629.0,62628.0,0.64961316]
[1721040841075,0.00404,62629.0,62628.0,0.65061316]
[1721040841408,0.00204,62629.0,62628.0,0.96895816]
[1721040841783,0.00404,62629.0,62628.0,1.28930316]
[1721040842353,0.00404,62629.0,62628.0,1.28830316]
[1721040842354,0.00204,62629.0,62628.0,1.28830316]
[1721040842500,0.00204,62629.0,62628.0,1.28730316]
[1721040842501,4e-05,62629.0,62628.0,1.28730316]
[1721040842703,0.00204,62629.0,62628.0,1.28830316]
[1721040842887,0.01204,62629.0,62628.0,1.28930316]
[1721040843084,0.00204,62629.0,62628.0,1.28830316]
[1721040843540,0.00304,62629.0,62628.0,1.28830316]
[1721040844086,0.00104,62629.0,62628.0,1.28730316]
[1721040844299,0.00104,62629.0,62628.0,1.97464816]
[1721040844507,0.00404,62629.0,62628.0,1.97464816]
[1721040844707,0.4863143,62643.0,62642.0,0.25804]
[1721040844909,0.4863143,62643.0,62642.0,0.14952474]
[1721040844910,0.73995489,62643.0,62642.0,0.14952474]
[1721040845116,0.09152268,62643.0,62642.0,0.643414]
[1721040845359,0.04198251,62643.0,62642.0,0.643414]
[1721040845564,0.20531713,62653.0,62652.0,0.0006914]
[1721040845693,0.04995904,62655.0,62653.0,0.00212474]
[1721040845897,0.049186,62654.0,62653.0,0.14952474]
[1721040846552,0.049186,62654.0,62653.0,0.483721]
[1721040846766,0.00087,62654.0,62653.0,0.962548]
[1721040847541,0.01387,62654.0,62653.0,0.963548]
[1721040848616,0.01387,62654.0,62653.0,0.15083334]
[1721040848617,0.38901276,62654.0,62653.0,0.15083334]
[1721040848797,0.75385358,62654.0,62653.0,0.08542474]
[1721040849001,0.73285358,62654.0,62653.0,0.08342474]
[1721040849364,0.22432845,62654.0,62653.0,0.08542474]
[1721040849578,0.17870063,62654.0,62653.0,0.08442474]
[1721040850004,0.18670063,62654.0,62653.0,0.08542474]
[1721040850187,0.02458272,62654.0,62653.0,0.08542474]
[1721040850495,0.01658272,62654.0,62653.0,0.259012]
[1721040850615,0.01658272,62654.0,62649.0,0.319234]
[1721040850616,0.00058272,62654.0,62649.0,0.319234]
[1721040850821,0.01058272,62654.0,62653.0,0.001]
[1721040851018,0.01058272,62654.0,62653.0,0.160609]
[1721040851293,0.01058272,62654.0,62653.0,0.001]
[1721040851495,0.00058272,62654.0,62653.0,0.17458726]
[1721040851900,0.01058272,62654.0,62653.0,0.24387897]
[1721040852052,0.01058272,62654.0,62653.0,0.24068726]
[1721040852253,0.02358272,62654.0,62653.0,0.226709]
[1721040852462,0.02358272,62654.0,62653.0,0.0661]
[1721040852660,0.01058272,62654.0,62653.0,0.24068726]
[1721040853100,0.01858272,62654.0,62653.0,0.24168726]
[1721040853336,0.01858272,62654.0,62653.0,1.20253297]
[1721040853337,0.00858272,62654.0,62653.0,1.20253297]
[1721040853648,0.00858272,62654.0,62653.0,1.28383297]
[1721040853878,0.01858272,62654.0,62653.0,1.28483297]
[1721040854322,0.01858272,62654.0,62653.0,1.65283297]
[1721040854547,0.01858272,62654.0,62653.0,1.69636791]
[1721040854782,0.01858272,62654.0,62653.0,1.74173787]
[1721040855011,0.01858272,62654.0,62653.0,1.84173787]
[1721040855206,0.01858272,62654.0,62653.0,2.04173787]
[1721040855450,0.00858272,62654.0,62653.0,2.35995587]
[1721040855654,0.00058272,62654.0,62653.0,2.35895587]
[1721040856061,0.00058272,62654.0,62653.0,2.62107378]
[1721040856470,0.00058272,62654.0,62653.0,3.12134416]
[1721040856673,4e-05,62664.0,62663.0,1.51099526]
[1721040857035,4e-05,62664.0,62663.0,2.38975049]
[1721040858053,4e-05,62664.0,62663.0,2.09826226]
[1721040858749,4e-05,62664.0,62663.0,2.10126226]
[1721040858980,0.00104,62664.0,62663.0,2.10626226]
[1721040859397,0.00204,62664.0,62663.0,2.41526226]
[1721040860282,0.00104,62664.0,62663.0,2.40626226]
[1721040860822,0.00104,62664.0,62663.0,2.20626226]
[1721040861020,4e-05,62664.0,62663.0,2.19826226]
[1721040861246,0.00104,62664.0,62663.0,2.40526226]
[1721040861684,0.00204,62664.0,62663.0,2.31426226]
[1721040861914,0.00104,62664.0,62663.0,2.10526226]
[1721040862047,0.00104,62664.0,62663.0,2.40526226]
[1721040862249,0.00204,62664.0,62663.0,2.31426226]
[1721040863272,4e-05,62668.0,62667.0,1.13199226]
[1721040864617,4e-05,62668.0,62667.0,1.13399226]
[1721040865028,4e-05,62668.0,62667.0,1.13799226]
[1721040866743,4e-05,62668.0,62667.0,1.50599226]
[1721040866929,4e-05,62668.0,62667.0,1.96713926]
[1721040867370,4e-05,62668.0,62667.0,1.44799226]
[1721040868709,4e-05,62668.0,62667.0,1.64799226]
[1721040872062,4e-05,62668.0,62667.0,1.44799226]
[1721040873543,4e-05,62668.0,62667.0,1.13799226]
[1721040878330,0.04702124,62676.0,62674.0,0.159553]
[1721040878739,0.04702124,62676.0,62675.0,0.17453126]
[1721040878969,0.04702124,62676.0,62675.0,0.49363726]
[1721040879403,0.04702124,62676.0,62674.0,0.159555]
[1721040879898,0.05302124,62676.0,62674.0,0.160555]
[1721040880127,0.04702124,62675.0,62674.0,0.159555]
[1721040880359,0.1398,62677.0,62674.0,0.159555]
[1721040880360,0.04702124,62676.0,62674.0,0.159555]
[1721040880596,0.04702124,62675.0,62674.0,0.159555]
[1721040880801,0.04702124,62675.0,62674.0,0.160555]
[1721040881189,0.06002124,62676.0,62674.0,0.160555]
[1721040881426,0.04702124,62675.0,62674.0,0.160555]
[1721040881580,0.04702124,62675.0,62674.0,0.159555]
[1721040881783,0.05302124,62675.0,62674.0,0.160555]
[1721040881994,0.05302124,62675.0,62674.0,0.161555]
[1721040882343,0.05302124,62675.0,62674.0,0.160555]
[1721040882673,0.05802124,62675.0,62674.0,0.160555]
[1721040882870,0.011,62675.0,62674.0,0.17553326]
[1721040883076,0.011,62675.0,62674.0,0.49464426]
[1721040883279,0.05802124,62675.0,62674.0,0.49464426]
[1721040884493,0.05802124,62675.0,62674.0,0.479666]
[1721040884699,0.05802124,62675.0,62674.0,0.160555]
[1721040886016,0.05802124,62675.0,62674.0,0.001]
[1721040886232,0.21757424,62675.0,62674.0,0.001]
[1721040886644,1.51920112,62675.0,62674.0,0.001]
[1721040886898,0.0759,62652.0,62651.0,0.09284996]
[1721040887087,0.0759,62652.0,62646.0,0.047575]
[1721040887088,0.159624,62647.0,62646.0,0.047575]
[1721040887302,0.159624,62647.0,62641.0,0.25497826]
[1721040887303,0.20913915,62647.0,62641.0,0.25497826]
[1721040887597,0.04702124,62646.0,62642.0,0.159637]
[1721040887822,0.04702124,62645.0,62642.0,0.159637]
[1721040888031,0.04702124,62644.0,62642.0,0.159637]